[Event "Early-Titled-Tuesday-Blitz-October-24-2023"]
[Site "Chess.com"]
[Date "2023.10.24"]
[Round "11"]
[White "Aleksandar-Topalov"]
[Black "ketster"]
[Result "1/2-1/2"]
[WhiteElo "2392"]
[BlackElo "2494"]
[TimeControl "180+1"]
[EndTime "10:04:24 PDT"]
[Termination "Game drawn by stalemate"]

1. b3 {[%clk 0:02:46.5]} 1... e5 {[%clk 0:02:50.4]} 2. Bb2 {[%clk 0:02:46.1]}
2... Nc6 {[%clk 0:02:50.9]} 3. e3 {[%clk 0:02:45.7]} 3... Nf6 {[%clk 0:02:51.2]}
4. Bb5 {[%clk 0:02:45.2]} 4... Bd6 {[%clk 0:02:51.3]} 5. Na3 {[%clk 0:02:45.5]}
5... e4 {[%clk 0:02:51.8]} 6. Nc4 {[%clk 0:02:42.6]} 6... Be7 {[%clk 0:02:51.9]}
7. Bxc6 {[%clk 0:02:40.2]} 7... bxc6 {[%clk 0:02:52.8]} 8. Ne2 {[%clk
0:02:40.1]} 8... d5 {[%clk 0:02:53.3]} 9. Ne5 {[%clk 0:02:39.9]} 9... Bb7 {[%clk
0:02:49.5]} 10. O-O {[%clk 0:02:39.2]} 10... c5 {[%clk 0:02:48.7]} 11. Ng3
{[%clk 0:02:36.5]} 11... Qc8 {[%clk 0:02:44.2]} 12. f3 {[%clk 0:02:30.2]} 12...
exf3 {[%clk 0:02:37.3]} 13. Qxf3 {[%clk 0:02:25.2]} 13... d4 {[%clk 0:02:36.9]}
14. e4 {[%clk 0:02:25.5]} 14... Qe6 {[%clk 0:02:33.7]} 15. Nc4 {[%clk
0:02:20.2]} 15... O-O {[%clk 0:02:15.2]} 16. d3 {[%clk 0:02:15.6]} 16... Nd7
{[%clk 0:02:11.2]} 17. Nf5 {[%clk 0:02:07.7]} 17... Bf6 {[%clk 0:02:11.2]} 18.
Bc1 {[%clk 0:02:00.4]} 18... Kh8 {[%clk 0:01:58.7]} 19. Bf4 {[%clk 0:01:58.1]}
19... Ne5 {[%clk 0:01:54.4]} 20. Nxe5 {[%clk 0:01:39.7]} 20... Bxe5 {[%clk
0:01:55.3]} 21. Bd2 {[%clk 0:01:34.5]} 21... g6 {[%clk 0:01:53.3]} 22. Nh6
{[%clk 0:01:31.7]} 22... f6 {[%clk 0:01:40.4]} 23. Ng4 {[%clk 0:01:21.7]} 23...
f5 {[%clk 0:01:34.1]} 24. Nxe5 {[%clk 0:01:14.6]} 24... Qxe5 {[%clk 0:01:34]}
25. Bh6 {[%clk 0:01:10.3]} 25... Rf7 {[%clk 0:01:20.9]} 26. Qh3 {[%clk
0:01:02.4]} 26... Re8 {[%clk 0:01:11.6]} 27. exf5 {[%clk 0:00:21.3]} 27... gxf5
{[%clk 0:01:08.3]} 28. Rf2 {[%clk 0:00:18]} 28... Rg8 {[%clk 0:00:48.5]} 29.
Raf1 {[%clk 0:00:17.3]} 29... Rg6 {[%clk 0:00:37.4]} 30. Rxf5 {[%clk 0:00:16.3]}
30... Rxf5 {[%clk 0:00:35.7]} 31. Rxf5 {[%clk 0:00:16.1]} 31... Qe1+ {[%clk
0:00:23.5]} 32. Rf1 {[%clk 0:00:16.1]} 32... Qe2 {[%clk 0:00:08.1]} 33. Rf8+
{[%clk 0:00:13.7]} 33... Rg8 {[%clk 0:00:07.8]} 34. Rxg8+ {[%clk 0:00:14.2]}
34... Kxg8 {[%clk 0:00:08.7]} 35. Qg3+ {[%clk 0:00:14.5]} 35... Kf7 {[%clk
0:00:06.8]} 36. Qg7+ {[%clk 0:00:14.5]} 36... Ke8 {[%clk 0:00:05.6]} 37. h3
{[%clk 0:00:14.8]} 37... Qe1+ {[%clk 0:00:04.8]} 38. Kh2 {[%clk 0:00:15.2]}
38... Qe7 {[%clk 0:00:05.1]} 39. Qg8+ {[%clk 0:00:14]} 39... Kd7 {[%clk
0:00:05.1]} 40. Qg3 {[%clk 0:00:12.2]} 40... Kc6 {[%clk 0:00:04.9]} 41. Bf4
{[%clk 0:00:12.2]} 41... Kb6 {[%clk 0:00:04.9]} 42. a4 {[%clk 0:00:11.9]} 42...
a5 {[%clk 0:00:04.8]} 43. Bd2 {[%clk 0:00:10.8]} 43... Bc6 {[%clk 0:00:04.8]}
44. Qe1 {[%clk 0:00:10.8]} 44... Qd6+ {[%clk 0:00:04.6]} 45. Kg1 {[%clk
0:00:10.1]} 45... Qd5 {[%clk 0:00:05.2]} 46. Bxa5+ {[%clk 0:00:09.4]} 46... Ka6
{[%clk 0:00:05.7]} 47. Qd2 {[%clk 0:00:09.9]} 47... Qf5 {[%clk 0:00:04]} 48. Qe1
{[%clk 0:00:09.2]} 48... Qd5 {[%clk 0:00:03.9]} 49. Qd2 {[%clk 0:00:08.9]} 49...
Qf5 {[%clk 0:00:04.4]} 50. Bxc7 {[%clk 0:00:08.5]} 50... Qd7 {[%clk 0:00:03]}
51. Bg3 {[%clk 0:00:08.5]} 51... Qg7 {[%clk 0:00:02.8]} 52. Kh2 {[%clk
0:00:08.5]} 52... Qg6 {[%clk 0:00:03.4]} 53. b4 {[%clk 0:00:07.6]} 53... h5
{[%clk 0:00:02.9]} 54. b5+ {[%clk 0:00:07.7]} 54... Bxb5 {[%clk 0:00:03.5]} 55.
axb5+ {[%clk 0:00:08.2]} 55... Kxb5 {[%clk 0:00:04.4]} 56. c3 {[%clk 0:00:07.7]}
56... h4 {[%clk 0:00:04.7]} 57. Bxh4 {[%clk 0:00:07.6]} 57... Qh5 {[%clk
0:00:04.3]} 58. Bg3 {[%clk 0:00:07.6]} 58... Qd5 {[%clk 0:00:05.2]} 59. cxd4
{[%clk 0:00:07.7]} 59... Qxd4 {[%clk 0:00:05.5]} 60. Qc2 {[%clk 0:00:07.5]}
60... Qe3 {[%clk 0:00:04.9]} 61. Qc4+ {[%clk 0:00:07.4]} 61... Kb6 {[%clk
0:00:05.5]} 62. Bd6 {[%clk 0:00:06.2]} 62... Qe8 {[%clk 0:00:03.8]} 63. Qxc5+
{[%clk 0:00:05.9]} 63... Ka6 {[%clk 0:00:04.5]} 64. Qc4+ {[%clk 0:00:05.1]}
64... Kb6 {[%clk 0:00:04.5]} 65. Bg3 {[%clk 0:00:05.7]} 65... Qg6 {[%clk
0:00:04]} 66. d4 {[%clk 0:00:05.8]} 66... Qb1 {[%clk 0:00:03.8]} 67. d5 {[%clk
0:00:05]} 67... Kb7 {[%clk 0:00:04.1]} 68. Qc6+ {[%clk 0:00:05.1]} 68... Ka7
{[%clk 0:00:03.5]} 69. d6 {[%clk 0:00:05.4]} 69... Qd1 {[%clk 0:00:03.1]} 70. d7
{[%clk 0:00:05.4]} 70... Qh1+ {[%clk 0:00:03.3]} 71. Kxh1 {[%clk 0:00:04.8]}
1/2-1/2

[Event "Early-Titled-Tuesday-Blitz-October-24-2023"]
[Site "Chess.com"]
[Date "2023.10.24"]
[Round "11"]
[White "noblerone"]
[Black "pinguino120"]
[Result "1/2-1/2"]
[WhiteElo "2508"]
[BlackElo "2241"]
[TimeControl "180+1"]
[EndTime "10:04:29 PDT"]
[Termination "Game drawn by agreement"]

1. d4 {[%clk 0:03:00.9]} 1... d5 {[%clk 0:02:57.8]} 2. Nf3 {[%clk 0:03:01.8]}
2... Nf6 {[%clk 0:02:56.4]} 3. Bg5 {[%clk 0:03:02.2]} 3... Ne4 {[%clk
0:02:54.3]} 4. Bf4 {[%clk 0:03:02.5]} 4... c5 {[%clk 0:02:53.9]} 5. e3 {[%clk
0:03:02.3]} 5... Qb6 {[%clk 0:02:49]} 6. Nc3 {[%clk 0:03:02.3]} 6... Nxc3 {[%clk
0:02:43.6]} 7. bxc3 {[%clk 0:03:02]} 7... Bg4 {[%clk 0:02:38.4]} 8. Rb1 {[%clk
0:02:55.5]} 8... Qa5 {[%clk 0:02:38.3]} 9. Bb5+ {[%clk 0:02:19.1]} 9... Nc6
{[%clk 0:02:35.7]} 10. O-O {[%clk 0:02:19.4]} 10... e6 {[%clk 0:02:19.9]} 11.
Bxc6+ {[%clk 0:01:36.7]} 11... bxc6 {[%clk 0:02:18.3]} 12. Rb7 {[%clk
0:01:36.2]} 12... Be7 {[%clk 0:02:03]} 13. Qb1 {[%clk 0:01:30.5]} 13... Rd8
{[%clk 0:01:51.5]} 14. Bc7 {[%clk 0:01:28.9]} 14... Qxc3 {[%clk 0:01:41.3]} 15.
Bxd8 {[%clk 0:01:27.7]} 15... Bxd8 {[%clk 0:01:42.2]} 16. Ne5 {[%clk 0:01:17]}
16... Bh5 {[%clk 0:01:41.3]} 17. Nxc6 {[%clk 0:01:07.9]} 17... O-O {[%clk
0:01:38]} 18. Nxd8 {[%clk 0:01:07.1]} 18... Rxd8 {[%clk 0:01:38.9]} 19. Rb8
{[%clk 0:01:07.4]} 19... Qa5 {[%clk 0:01:36.6]} 20. Rxd8+ {[%clk 0:01:02.4]}
20... Qxd8 {[%clk 0:01:35.9]} 21. Qb7 {[%clk 0:01:03.1]} 21... cxd4 {[%clk
0:01:33.2]} 22. exd4 {[%clk 0:01:00]} 22... h6 {[%clk 0:01:28.5]} 23. Qxa7
{[%clk 0:00:57.3]} 23... Bg6 {[%clk 0:01:28.4]} 24. c3 {[%clk 0:00:55]} 24...
Qd6 {[%clk 0:01:27.1]} 25. a4 {[%clk 0:00:50.5]} 25... Qf4 {[%clk 0:01:26.7]}
26. a5 {[%clk 0:00:42.7]} 26... Be4 {[%clk 0:01:25.7]} 27. f3 {[%clk 0:00:35.3]}
27... Qe3+ {[%clk 0:01:21.1]} 28. Kh1 {[%clk 0:00:35.3]} 28... Qe2 {[%clk
0:01:17.6]} 29. Qb8+ {[%clk 0:00:32]} 29... Kh7 {[%clk 0:01:14.3]} 30. Rg1
{[%clk 0:00:22.2]} 30... Bxf3 {[%clk 0:01:13.6]} 31. Qg3 {[%clk 0:00:22.3]}
31... Be4 {[%clk 0:01:11]} 32. h3 {[%clk 0:00:21.9]} 32... Qb5 {[%clk
0:01:08.6]} 33. Kh2 {[%clk 0:00:17.2]} 33... Qxa5 {[%clk 0:01:08.2]} 34. Qe3
{[%clk 0:00:15.5]} 34... Qb5 {[%clk 0:01:04.7]} 35. Re1 {[%clk 0:00:14.1]} 35...
Qc4 {[%clk 0:00:58.6]} 36. Re2 {[%clk 0:00:14.1]} 36... Bd3 {[%clk 0:00:57.1]}
37. Rf2 {[%clk 0:00:14.5]} 37... Bg6 {[%clk 0:00:50.4]} 38. Rb2 {[%clk
0:00:13.2]} 38... Bd3 {[%clk 0:00:47.3]} 39. Rb7 {[%clk 0:00:10.5]} 39... Bg6
{[%clk 0:00:46.2]} 40. h4 {[%clk 0:00:09.8]} 40... h5 {[%clk 0:00:45.7]} 41. Qf3
{[%clk 0:00:08.1]} 41... Qc6 {[%clk 0:00:38.4]} 42. Rb2 {[%clk 0:00:06.5]} 42...
Qd6+ {[%clk 0:00:38.5]} 43. Qg3 {[%clk 0:00:07.1]} 43... Qc6 {[%clk 0:00:35]}
44. Rf2 {[%clk 0:00:05.6]} 44... Qc4 {[%clk 0:00:34.5]} 45. Qe3 {[%clk
0:00:05.8]} 45... Qc7+ {[%clk 0:00:33.4]} 46. Qg3 {[%clk 0:00:05.7]} 46... Qc4
{[%clk 0:00:33.4]} 47. Rb2 {[%clk 0:00:06.1]} 47... Qf1 {[%clk 0:00:32.4]} 48.
Rb7 {[%clk 0:00:05.3]} 48... Qf6 {[%clk 0:00:32.4]} 49. Rc7 {[%clk 0:00:05.1]}
49... Qf5 {[%clk 0:00:31.6]} 50. Qg5 {[%clk 0:00:04.4]} 50... Qxg5 {[%clk
0:00:28.1]} 51. hxg5 {[%clk 0:00:05.3]} 51... Bf5 {[%clk 0:00:26.9]} 52. Kg3
{[%clk 0:00:05.5]} 52... Kg6 {[%clk 0:00:27.1]} 53. Kf4 {[%clk 0:00:06.1]} 53...
Be4 {[%clk 0:00:23.5]} 54. g3 {[%clk 0:00:05.6]} 54... Bd3 {[%clk 0:00:24]} 55.
Rc8 {[%clk 0:00:04.4]} 55... Bc4 {[%clk 0:00:24.2]} 56. Rc7 {[%clk 0:00:04.1]}
56... Bd3 {[%clk 0:00:24.7]} 57. Ra7 {[%clk 0:00:04.8]} 57... Bc4 {[%clk
0:00:25]} 58. Ra1 {[%clk 0:00:05.4]} 58... Bd3 {[%clk 0:00:25.4]} 59. Re1 {[%clk
0:00:06]} 59... Bc4 {[%clk 0:00:25.8]} 60. Rh1 {[%clk 0:00:05.6]} 60... Bd3
{[%clk 0:00:25.6]} 61. Rh2 {[%clk 0:00:06]} 61... Bc4 {[%clk 0:00:26]} 62. g4
{[%clk 0:00:06.3]} 62... hxg4 {[%clk 0:00:25.7]} 63. Kxg4 {[%clk 0:00:07.2]}
63... Bd3 {[%clk 0:00:25.6]} 64. Kf4 {[%clk 0:00:07.9]} 64... Bc4 {[%clk
0:00:26]} 65. Rb2 {[%clk 0:00:07.8]} 65... Bd3 {[%clk 0:00:25.9]} 66. Rb4 {[%clk
0:00:08.7]} 66... Bc4 {[%clk 0:00:26.2]} 67. Rb6 {[%clk 0:00:08.3]} 67... Bd3
{[%clk 0:00:26.5]} 68. Rb8 {[%clk 0:00:08.8]} 68... Bc4 {[%clk 0:00:25.8]} 69.
Rd8 {[%clk 0:00:09.7]} 69... Bd3 {[%clk 0:00:26.1]} 70. Rd7 {[%clk 0:00:09.2]}
70... Bc4 {[%clk 0:00:26]} 71. Rd6 {[%clk 0:00:09.3]} 71... Bd3 {[%clk
0:00:26.4]} 72. Rc6 {[%clk 0:00:09.2]} 72... Bc4 {[%clk 0:00:26.8]} 73. Rc5
{[%clk 0:00:09.3]} 73... Bd3 {[%clk 0:00:27.2]} 74. Ra5 {[%clk 0:00:09.2]} 74...
Bc4 {[%clk 0:00:27.6]} 75. Ra3 {[%clk 0:00:10.1]} 75... Bd3 {[%clk 0:00:27.6]}
76. Kg4 {[%clk 0:00:10.2]} 76... Bc4 {[%clk 0:00:27.7]} 77. Kh4 {[%clk
0:00:10.6]} 77... Bd3 {[%clk 0:00:28.1]} 78. Ra1 {[%clk 0:00:11.1]} 78... Bc4
{[%clk 0:00:28.5]} 79. Rc1 {[%clk 0:00:11.7]} 79... Bd3 {[%clk 0:00:28.3]} 80.
Rd1 {[%clk 0:00:12.1]} 80... Bc4 {[%clk 0:00:28.7]} 81. Rd2 {[%clk 0:00:12.7]}
81... Bb5 {[%clk 0:00:28.5]} 82. Kg4 {[%clk 0:00:12.3]} 82... Bc4 {[%clk
0:00:28.8]} 83. Kf4 {[%clk 0:00:13]} 83... Bb5 {[%clk 0:00:29.2]} 84. Rb2 {[%clk
0:00:12.9]} 84... Bc4 {[%clk 0:00:29.3]} 85. Rb4 {[%clk 0:00:12.5]} 85... Bd3
{[%clk 0:00:29.4]} 86. Rb7 {[%clk 0:00:11.7]} 86... Bc4 {[%clk 0:00:29.6]} 87.
Rc7 {[%clk 0:00:12.3]} 87... Bd3 {[%clk 0:00:29.6]} 88. Rc6 {[%clk 0:00:12.1]}
88... Bc4 {[%clk 0:00:28.7]} 89. Rc5 {[%clk 0:00:11.9]} 1/2-1/2

[Event "Early-Titled-Tuesday-Blitz-October-24-2023"]
[Site "Chess.com"]
[Date "2023.10.24"]
[Round "11"]
[White "SnekkerAndersen"]
[Black "gau248"]
[Result "1/2-1/2"]
[WhiteElo "2496"]
[BlackElo "2582"]
[TimeControl "180+1"]
[EndTime "10:04:30 PDT"]
[Termination "Game drawn by stalemate"]

1. a3 {[%clk 0:03:00.9]} 1... a6 {[%clk 0:02:58.2]} 2. h3 {[%clk 0:03:01.8]}
2... h6 {[%clk 0:02:58.1]} 3. e3 {[%clk 0:03:02.6]} 3... e6 {[%clk 0:02:58.2]}
4. d3 {[%clk 0:03:03.5]} 4... d6 {[%clk 0:02:58.6]} 5. Nc3 {[%clk 0:03:04.4]}
5... Nc6 {[%clk 0:02:58.7]} 6. Bd2 {[%clk 0:03:05.3]} 6... Bd7 {[%clk
0:02:58.5]} 7. Ke2 {[%clk 0:03:02.4]} 7... Ke7 {[%clk 0:02:57.8]} 8. Ke1 {[%clk
0:03:02.7]} 8... Ke8 {[%clk 0:02:56.8]} 9. Ke2 {[%clk 0:03:02.8]} 9... Nf6
{[%clk 0:02:50.2]} 10. Ke1 {[%clk 0:02:57.4]} 10... d5 {[%clk 0:02:49]} 11. e4
{[%clk 0:02:55.1]} 11... dxe4 {[%clk 0:02:41.8]} 12. Nxe4 {[%clk 0:02:50.8]}
12... Nxe4 {[%clk 0:02:41.3]} 13. dxe4 {[%clk 0:02:51.7]} 13... Be7 {[%clk
0:02:41.8]} 14. Nf3 {[%clk 0:02:50.9]} 14... Bf6 {[%clk 0:02:40.5]} 15. Rb1
{[%clk 0:02:46.4]} 15... Nd4 {[%clk 0:02:33.1]} 16. Nxd4 {[%clk 0:02:45.8]}
16... Bxd4 {[%clk 0:02:34]} 17. Bd3 {[%clk 0:02:45.7]} 17... Qf6 {[%clk
0:02:32.6]} 18. Rf1 {[%clk 0:02:35.1]} 18... Bc6 {[%clk 0:02:24.6]} 19. c3
{[%clk 0:02:32.7]} 19... Bb6 {[%clk 0:02:24.1]} 20. Qe2 {[%clk 0:02:32.1]} 20...
Rd8 {[%clk 0:02:22.2]} 21. Rd1 {[%clk 0:02:20.6]} 21... Ba4 {[%clk 0:02:20.9]}
22. Rb1 {[%clk 0:02:18.3]} 22... Qe7 {[%clk 0:02:19.7]} 23. Be3 {[%clk
0:02:08.7]} 23... Bxe3 {[%clk 0:02:15.3]} 24. Qxe3 {[%clk 0:02:09.4]} 24... Qd6
{[%clk 0:02:15.6]} 25. Ke2 {[%clk 0:02:00.4]} 25... Ke7 {[%clk 0:02:11.1]} 26.
b3 {[%clk 0:01:56.4]} 26... Bc6 {[%clk 0:02:09.6]} 27. a4 {[%clk 0:01:52.7]}
27... a5 {[%clk 0:02:04]} 28. Rfd1 {[%clk 0:01:51.3]} 28... Qe5 {[%clk
0:01:56.7]} 29. Rbc1 {[%clk 0:01:43.8]} 29... g5 {[%clk 0:01:54.9]} 30. Kf1
{[%clk 0:01:38.3]} 30... Rd6 {[%clk 0:01:52.6]} 31. Bc2 {[%clk 0:01:20.1]} 31...
Rhd8 {[%clk 0:01:50.3]} 32. Rxd6 {[%clk 0:01:19.7]} 32... Rxd6 {[%clk
0:01:51.2]} 33. Kg1 {[%clk 0:01:15.7]} 33... f5 {[%clk 0:01:41.5]} 34. exf5
{[%clk 0:01:13.1]} 34... Qxe3 {[%clk 0:01:41.8]} 35. fxe3 {[%clk 0:01:12.4]}
35... Rd2 {[%clk 0:01:42.4]} 36. f6+ {[%clk 0:01:06.6]} 36... Kf7 {[%clk
0:01:40.7]} 37. e4 {[%clk 0:00:14.6]} 37... Kxf6 {[%clk 0:01:38.3]} 38. Rf1+
{[%clk 0:00:12.3]} 38... Ke5 {[%clk 0:01:38.5]} 39. Rf2 {[%clk 0:00:13.2]} 39...
Rxf2 {[%clk 0:01:37]} 40. Kxf2 {[%clk 0:00:14.1]} 40... Bxe4 {[%clk 0:01:37.4]}
41. Bd1 {[%clk 0:00:14.5]} 41... c5 {[%clk 0:01:35.7]} 42. g3 {[%clk 0:00:13.5]}
42... b6 {[%clk 0:01:35]} 43. Ke3 {[%clk 0:00:13.6]} 43... Bb1 {[%clk
0:01:29.4]} 44. Kf3 {[%clk 0:00:09.7]} 44... Ba2 {[%clk 0:01:23.6]} 45. Ke3
{[%clk 0:00:07.2]} 45... c4 {[%clk 0:01:23.6]} 46. b4 {[%clk 0:00:07.3]} 46...
Bb1 {[%clk 0:01:16.1]} 47. bxa5 {[%clk 0:00:05.3]} 47... bxa5 {[%clk 0:01:16.1]}
48. Be2 {[%clk 0:00:05.9]} 48... Kd5 {[%clk 0:01:15.2]} 49. Bf3+ {[%clk
0:00:05.9]} 49... Kc5 {[%clk 0:01:15.5]} 50. Bg4 {[%clk 0:00:06]} 50... e5
{[%clk 0:01:15.1]} 51. Be6 {[%clk 0:00:05.7]} 51... Bc2 {[%clk 0:01:14.3]} 52.
Bd7 {[%clk 0:00:05.7]} 52... Kd6 {[%clk 0:01:12.4]} 53. Bb5 {[%clk 0:00:05.5]}
53... Kd5 {[%clk 0:01:12.3]} 54. Be8 {[%clk 0:00:05.4]} 54... Bf5 {[%clk
0:01:10.9]} 55. h4 {[%clk 0:00:05.3]} 55... gxh4 {[%clk 0:01:09.1]} 56. gxh4
{[%clk 0:00:06.2]} 56... Bc2 {[%clk 0:01:09.2]} 57. Bf7+ {[%clk 0:00:05.6]}
57... Kd6 {[%clk 0:01:05.7]} 58. Be8 {[%clk 0:00:06.5]} 58... Ke6 {[%clk
0:01:05.5]} 59. Bb5 {[%clk 0:00:05.9]} 59... Kf5 {[%clk 0:01:04.8]} 60. Kf3
{[%clk 0:00:04.7]} 60... Bd1+ {[%clk 0:00:58.2]} 61. Ke3 {[%clk 0:00:02.7]}
61... Kg4 {[%clk 0:00:57.9]} 62. Ke4 {[%clk 0:00:03.1]} 62... Kxh4 {[%clk
0:00:57.6]} 63. Kxe5 {[%clk 0:00:03.7]} 63... h5 {[%clk 0:00:57.8]} 64. Bxc4
{[%clk 0:00:02.5]} 64... Bxa4 {[%clk 0:00:57.4]} 65. Bf7 {[%clk 0:00:02.3]}
65... Bb5 {[%clk 0:00:53]} 66. c4 {[%clk 0:00:01.3]} 66... Bc6 {[%clk
0:00:48.3]} 67. Kd4 {[%clk 0:00:01]} 67... Kg5 {[%clk 0:00:44.9]} 68. Bxh5
{[%clk 0:00:01.9]} 68... Kxh5 {[%clk 0:00:45.8]} 69. Kc3 {[%clk 0:00:02.5]}
69... Kg5 {[%clk 0:00:46]} 70. Kb2 {[%clk 0:00:03.4]} 70... Kf4 {[%clk
0:00:46.9]} 71. Ka1 {[%clk 0:00:04.3]} 71... Ke3 {[%clk 0:00:47.8]} 72. Kb1
{[%clk 0:00:05.2]} 72... Kd4 {[%clk 0:00:48.7]} 73. Ka1 {[%clk 0:00:06.1]} 73...
Kc3 {[%clk 0:00:49.4]} 74. Kb1 {[%clk 0:00:07]} 74... Kb3 {[%clk 0:00:49.2]} 75.
Ka1 {[%clk 0:00:07.9]} 75... a4 {[%clk 0:00:47.5]} 76. Kb1 {[%clk 0:00:08.8]}
76... a3 {[%clk 0:00:48.4]} 77. Ka1 {[%clk 0:00:09.7]} 77... Ba4 {[%clk
0:00:46.1]} 78. c5 {[%clk 0:00:10.6]} 78... Bc6 {[%clk 0:00:47]} 79. Kb1 {[%clk
0:00:10.5]} 79... Ka4 {[%clk 0:00:47.1]} 80. Ka1 {[%clk 0:00:11.4]} 80... Kb4
{[%clk 0:00:47.8]} 81. Kb1 {[%clk 0:00:12.3]} 81... Be4+ {[%clk 0:00:46.9]} 82.
Ka1 {[%clk 0:00:13.2]} 82... Bc6 {[%clk 0:00:47.8]} 83. Kb1 {[%clk 0:00:14.1]}
83... Bd7 {[%clk 0:00:47.5]} 84. Ka1 {[%clk 0:00:15]} 84... Bc8 {[%clk 0:00:48]}
85. Kb1 {[%clk 0:00:15.9]} 85... Bh3 {[%clk 0:00:48.7]} 86. Ka1 {[%clk
0:00:16.8]} 86... Bc8 {[%clk 0:00:49.4]} 87. Kb1 {[%clk 0:00:17.7]} 87... Kc4
{[%clk 0:00:49.2]} 88. c6 {[%clk 0:00:18.6]} 88... Kb3 {[%clk 0:00:49.3]} 89. c7
{[%clk 0:00:19.5]} 89... Bf5+ {[%clk 0:00:49.6]} 90. Ka1 {[%clk 0:00:20.4]}
90... Ka4 {[%clk 0:00:48.7]} 91. Ka2 {[%clk 0:00:20.7]} 91... Be6+ {[%clk
0:00:48.5]} 92. Ka1 {[%clk 0:00:20.8]} 92... Kb3 {[%clk 0:00:45.2]} 93. Kb1
{[%clk 0:00:18.7]} 93... a2+ {[%clk 0:00:44.5]} 94. Ka1 {[%clk 0:00:19]} 94...
Bc8 {[%clk 0:00:45]} 1/2-1/2

[Event "Early-Titled-Tuesday-Blitz-October-24-2023"]
[Site "Chess.com"]
[Date "2023.10.24"]
[Round "11"]
[White "surrenderPLS"]
[Black "Manukyan_Artak"]
[Result "1/2-1/2"]
[WhiteElo "2513"]
[BlackElo "2408"]
[TimeControl "180+1"]
[EndTime "10:04:34 PDT"]
[Termination "Game drawn by repetition"]

1. e4 {[%clk 0:03:00.9]} 1... c6 {[%clk 0:02:59.7]} 2. d4 {[%clk 0:03:00.8]}
2... d5 {[%clk 0:03:00.2]} 3. exd5 {[%clk 0:03:01.7]} 3... cxd5 {[%clk 0:03:01]}
4. Bd3 {[%clk 0:03:02.1]} 4... Nc6 {[%clk 0:03:00.4]} 5. c3 {[%clk 0:03:02.2]}
5... e5 {[%clk 0:03:00]} 6. dxe5 {[%clk 0:03:02.1]} 6... Nxe5 {[%clk 0:03:00.9]}
7. Nf3 {[%clk 0:03:03]} 7... Nxd3+ {[%clk 0:03:00.3]} 8. Qxd3 {[%clk 0:03:03.9]}
8... Nf6 {[%clk 0:02:59.2]} 9. O-O {[%clk 0:03:00.6]} 9... Be7 {[%clk
0:02:58.5]} 10. Bg5 {[%clk 0:02:59.7]} 10... O-O {[%clk 0:02:55.7]} 11. h3
{[%clk 0:02:57.4]} 11... h6 {[%clk 0:02:54.4]} 12. Bh4 {[%clk 0:02:51.1]} 12...
Be6 {[%clk 0:02:53.2]} 13. Nbd2 {[%clk 0:02:49.8]} 13... Re8 {[%clk 0:02:51.8]}
14. Rfe1 {[%clk 0:02:46]} 14... Qb6 {[%clk 0:02:46]} 15. Nb3 {[%clk 0:02:37.7]}
15... a5 {[%clk 0:02:44.7]} 16. Bxf6 {[%clk 0:02:34.8]} 16... Bxf6 {[%clk
0:02:38.2]} 17. Qd2 {[%clk 0:02:34.3]} 17... a4 {[%clk 0:02:31]} 18. Nbd4 {[%clk
0:02:33.7]} 18... Bd7 {[%clk 0:02:31.4]} 19. Rad1 {[%clk 0:02:24.8]} 19... Re3
{[%clk 0:02:24.4]} 20. a3 {[%clk 0:02:17.6]} 20... Re4 {[%clk 0:02:18.8]} 21.
Re2 {[%clk 0:02:04.7]} 21... Rae8 {[%clk 0:02:10.6]} 22. Rde1 {[%clk 0:02:04.7]}
22... Bb5 {[%clk 0:02:02.1]} 23. Re3 {[%clk 0:02:00.9]} 23... Bc4 {[%clk
0:01:57.6]} 24. g3 {[%clk 0:01:46.4]} 24... h5 {[%clk 0:01:37.7]} 25. Kg2 {[%clk
0:01:44]} 25... g6 {[%clk 0:01:36]} 26. h4 {[%clk 0:01:41.3]} 26... Kg7 {[%clk
0:01:35.8]} 27. Qc2 {[%clk 0:01:33]} 27... Rxe3 {[%clk 0:01:32.8]} 28. Rxe3
{[%clk 0:01:33.9]} 28... Rxe3 {[%clk 0:01:32.5]} 29. fxe3 {[%clk 0:01:34.8]}
29... Bb3 {[%clk 0:01:27.3]} 30. Nxb3 {[%clk 0:01:30.5]} 30... axb3 {[%clk
0:01:28.2]} 31. Qd3 {[%clk 0:01:29]} 31... Qe6 {[%clk 0:01:23.3]} 32. Nd4 {[%clk
0:01:26.3]} 32... Bxd4 {[%clk 0:01:16.6]} 33. Qxd4+ {[%clk 0:01:24]} 33... f6
{[%clk 0:01:17]} 34. Qf4 {[%clk 0:01:02.5]} 34... Qe4+ {[%clk 0:01:12.1]} 35.
Qxe4 {[%clk 0:00:45.2]} 35... dxe4 {[%clk 0:01:13]} 36. Kh3 {[%clk 0:00:45.3]}
36... g5 {[%clk 0:01:06.2]} 37. g4 {[%clk 0:00:42.5]} 37... Kg6 {[%clk 0:01:04]}
38. hxg5 {[%clk 0:00:40.5]} 38... Kxg5 {[%clk 0:01:01.8]} 39. gxh5 {[%clk
0:00:40.4]} 39... Kxh5 {[%clk 0:01:02.7]} 40. a4 {[%clk 0:00:38.4]} 40... Kg5
{[%clk 0:01:00.6]} 41. Kg3 {[%clk 0:00:38.7]} 41... f5 {[%clk 0:01:00.4]} 42. c4
{[%clk 0:00:36.9]} 42... b6 {[%clk 0:00:41.9]} 43. Kf2 {[%clk 0:00:33.4]} 43...
f4 {[%clk 0:00:40.5]} 44. exf4+ {[%clk 0:00:31.7]} 44... Kxf4 {[%clk 0:00:40.2]}
45. Ke2 {[%clk 0:00:24.7]} 45... e3 {[%clk 0:00:38.3]} 46. c5 {[%clk 0:00:21.3]}
46... bxc5 {[%clk 0:00:35.9]} 47. a5 {[%clk 0:00:21.6]} 47... c4 {[%clk
0:00:36.5]} 48. a6 {[%clk 0:00:21.9]} 48... c3 {[%clk 0:00:36]} 49. a7 {[%clk
0:00:20.5]} 49... cxb2 {[%clk 0:00:35.9]} 50. a8=Q {[%clk 0:00:20.6]} 50... b1=Q
{[%clk 0:00:36.2]} 51. Qf3+ {[%clk 0:00:20.3]} 51... Ke5 {[%clk 0:00:35.7]} 52.
Qh5+ {[%clk 0:00:08.7]} 52... Kd4 {[%clk 0:00:29.4]} 53. Qh8+ {[%clk 0:00:07.8]}
53... Kc4 {[%clk 0:00:26.9]} 54. Qc8+ {[%clk 0:00:04.1]} 54... Kb4 {[%clk
0:00:26.4]} 55. Qb7+ {[%clk 0:00:04.5]} 55... Ka3 {[%clk 0:00:26.5]} 56. Qa7+
{[%clk 0:00:04.9]} 56... Kb2 {[%clk 0:00:26.6]} 57. Qd4+ {[%clk 0:00:05.3]}
57... Kc1 {[%clk 0:00:20.7]} 58. Qd1+ {[%clk 0:00:05.2]} 58... Kb2 {[%clk
0:00:21.1]} 59. Qd4+ {[%clk 0:00:06.1]} 59... Ka3 {[%clk 0:00:17.1]} 60. Qa7+
{[%clk 0:00:06.5]} 60... Kb4 {[%clk 0:00:17.3]} 61. Qb6+ {[%clk 0:00:06.5]}
61... Kc4 {[%clk 0:00:16.5]} 62. Qc6+ {[%clk 0:00:05.4]} 62... Kb4 {[%clk
0:00:15.8]} 63. Qb6+ {[%clk 0:00:05.8]} 63... Kc3 {[%clk 0:00:16.2]} 64. Qf6+
{[%clk 0:00:04.2]} 64... Kc2 {[%clk 0:00:13.6]} 65. Qf5+ {[%clk 0:00:03.9]}
65... Kb2 {[%clk 0:00:13.9]} 66. Qe5+ {[%clk 0:00:04.1]} 66... Ka3 {[%clk
0:00:10.1]} 67. Qa5+ {[%clk 0:00:03.6]} 67... Kb2 {[%clk 0:00:10.5]} 68. Qe5+
{[%clk 0:00:04.4]} 68... Kc2 {[%clk 0:00:09.1]} 69. Qc5+ {[%clk 0:00:03.7]}
69... Kb2 {[%clk 0:00:08.4]} 70. Qe5+ {[%clk 0:00:04.6]} 1/2-1/2